Posting Date,Expenditure Area,Supplier Name,Amount,Reason for Expense,Expense Type
29-Jun-21,Culture & Environment Services,Amznmktplace, 20.20 ,TABLET LEADS,Computer Consumables and other Minor IT costs
18-Jun-21,Culture & Environment Services,Amznmktplace, 99.99 ,Live Aid DVD for Queen's Jubilee Celebrations,Equipment / Furniture / Materials
14-May-21,Culture & Environment Services,Amznmktplace, 11.12 ,Sun screen to block out shadow on hand held tablet,Materials and Supplies - Miscellaneous
18-Jun-21,Culture & Environment Services,Amznmktplace, 47.32 ,PHONE CASES/SCREEN PROTECTORS - PARK PATROL,Materials and Supplies - Miscellaneous
06-May-21,Culture & Environment Services,Amznmktplace Amazon.Co.Uk, 9.99 ,Plastic dispenser key for Sun Deb dispenser,Materials and Supplies - Miscellaneous
29-Jun-21,Culture & Environment Services,Anglian Security&fire, 32.08 ,2 x blank Gower alarm fobs + postage,Equipment / Furniture / Materials
07-May-21,Culture & Environment Services,B & Q 1315, 50.00 ,Toilet Seats x 6,Materials and Supplies - Miscellaneous
11-May-21,Culture & Environment Services,B & Q 1315, 9.06 ,Magnusson 10m Tape Measure,Materials and Supplies - Miscellaneous
14-May-21,Culture & Environment Services,B & Q 1315, 22.45 ,turf,Materials and Supplies - Miscellaneous
26-May-21,Culture & Environment Services,B & Q 1315, 17.06 ,Cement - CHANTRY HUB,Materials and Supplies - Miscellaneous
28-May-21,Culture & Environment Services,B & Q 1315, 42.39 ,"Brushes x2, Roller/Tray Set, Smooth Masonry Paint & Trim",Materials and Supplies - Miscellaneous
21-Jun-21,Culture & Environment Services,B & Q 1315, 35.00 ,Sadolin Extra Durable Woodstain x 1,Materials and Supplies - Miscellaneous
07-Jun-21,Culture & Environment Services,B & Q 1315, 21.69 ,Woodsaws - LANDSCAPE TEAM,Miscellaneous Stock  - Purchases
21-May-21,Culture & Environment Services,Bag Agg Ltd, 25.00 ,BALLAST - CHANTRY HUB,Materials and Supplies - Miscellaneous
08-Jun-21,Culture & Environment Services,Barriers Direct, 294.73 ,The purchase of new clamps,Equipment / Furniture / Materials
08-Jun-21,Culture & Environment Services,Barriers Direct, 327.48 ,X4 additional wheel clamps,Equipment / Furniture / Materials
24-May-21,Culture & Environment Services,Benchmark UK Ltd," 1,500.00 ",Picnic tables for Holywells Park,Materials and Supplies - Miscellaneous
02-Jun-21,Culture & Environment Services,Booker Limited Ipswich, 20.58 ,Water for Waste Services,Equipment / Furniture / Materials
22-Jun-21,Culture & Environment Services,Bypass Nurseries, 66.60 ,Various planting items - CHANTRY HUB,Materials and Supplies - Miscellaneous
19-May-21,Culture & Environment Services,Clarke Fencing Ltd, 233.95 ,Gates/ Posts/Post Mix Concrete/Security Collar,Materials and Supplies - Miscellaneous
18-Jun-21,Culture & Environment Services,Collier & Catchpole, 69.97 ,Line Marker - LANDSCAPE TEAM,Miscellaneous Stock  - Purchases
03-Jun-21,Culture & Environment Services,Costa Coffee 43036130, 9.67 ,Meeting refreshments - EAMC,Miscellaneous Expenses
14-Jun-21,Culture & Environment Services,Dvla Vehicle Tax, 277.50 ,TAX FOR AX19 XLA VEHICLE,Direct Transport Costs
14-Jun-21,Culture & Environment Services,Dvla Vehicle Tax, 277.50 ,VEHICLE TAX AX19 XCY,Direct Transport Costs
14-Jun-21,Culture & Environment Services,Dvla Vehicle Tax, 277.50 ,VEHICLE TAX FOR AV11 ZTM,Direct Transport Costs
14-Jun-21,Culture & Environment Services,Dvla Vehicle Tax, 167.50 ,vehicle tax for AY12 DXU,Direct Transport Costs
21-Jun-21,Culture & Environment Services,Dvla Vehicle Tax, 302.50 ,VEHCLE TAX FOR AV13 OPU,Direct Transport Costs
21-Jun-21,Culture & Environment Services,Dvla Vehicle Tax, 562.50 ,VEHICE TAX FOR AV13 OPT,Direct Transport Costs
21-Jun-21,Culture & Environment Services,Dvla Vehicle Tax, 562.50 ,VEHICLE TAX FOR AV13 OPL,Direct Transport Costs
21-Jun-21,Culture & Environment Services,Dvla Vehicle Tax, 562.50 ,VEHICLE TAX FOR AV13 OPM,Direct Transport Costs
21-Jun-21,Culture & Environment Services,Dvla Vehicle Tax, 562.50 ,VEHICLE TAX FOR AV13 OPS,Direct Transport Costs
25-Jun-21,Culture & Environment Services,Dvla Vehicle Tax, 277.50 ,VEHICLE TAX FOR AV13 OOJ,Direct Transport Costs
14-Jun-21,Culture & Environment Services,Dvla Vehicle Tax, 277.50 ,VEHICLE TAX FOR AX14 CWN,Parks Vehicle Costs
16-Jun-21,Culture & Environment Services,Dvsa, 13.00 ,REPLACEMENT DOCS FOR AV70 SBU,Direct Transport Costs
07-Jun-21,Culture & Environment Services,Eastern Auto Spares Ip, 36.65 ,2 x sets of Jump Leads,Materials and Supplies - Miscellaneous
02-Jun-21,Culture & Environment Services,Ebay O*13-07145-52656, 7.54 ,General supply purchases,Equipment / Furniture / Materials
21-Jun-21,Culture & Environment Services,Ernest Doe & Sons, 289.28 ,Battery Mower 41cm x 1,Materials and Supplies - Miscellaneous
03-Jun-21,Culture & Environment Services,Foxs Chandleries Limi, 9.98 ,Sealant for signage @Bourne Park,Equipment / Furniture / Materials
14-Jun-21,Culture & Environment Services,Groundsman Tools And Supp, 161.09 ,strimming line,Materials and Supplies - Miscellaneous
08-Jun-21,Culture & Environment Services,Honey Bros," 1,300.40 ",arbs climbing equipment,Materials and Supplies - Miscellaneous
04-Jun-21,Culture & Environment Services,Horticultural Sppls Ltd, 8.70 ,Watering cans - WHITTON HUB,Materials and Supplies - Miscellaneous
03-Jun-21,Culture & Environment Services,Horticultural Sppls Ltd, 47.58 ,Groundcover Pegs - STOWMARKET,Miscellaneous Stock  - Purchases
03-Jun-21,Culture & Environment Services,Hussey Knights Ltd, 25.00 ,Site Plans - STOWMARKET,Miscellaneous Stock  - Purchases
24-Jun-21,Culture & Environment Services,Indespension, 20.32 ,"Clamp Pressed x 1, Jockey Wheel x 1",Materials and Supplies - Miscellaneous
10-Jun-21,Culture & Environment Services,Indespension, 3.49 ,Multiplug for digger,Miscellaneous Stock  - Purchases
14-May-21,Culture & Environment Services,Kesgrave Aggregates, 538.42 ,Aggregate for Landseer,Materials and Supplies - Miscellaneous
11-May-21,Culture & Environment Services,Kings, 20.83 ,Keys Cut x 3,Materials and Supplies - Miscellaneous
19-May-21,Culture & Environment Services,Kings, 51.67 ,Keys Cut x 11,Materials and Supplies - Miscellaneous
27-May-21,Culture & Environment Services,Kings, 10.83 ,Keys Cut x 8,Materials and Supplies - Miscellaneous
17-Jun-21,Culture & Environment Services,Kings, 41.67 ,Cylinder Key x 1,Materials and Supplies - Miscellaneous
22-Jun-21,Culture & Environment Services,Kings, 83.33 ,Keys for various buildings.,Materials and Supplies - Miscellaneous
09-Jun-21,Culture & Environment Services,Machine Mart Ltd, 31.98 ,PPE TROUSERS - PARKS UNIFORM,Clothing / Uniform & Laundry
17-Jun-21,Culture & Environment Services,Marshalls Group Limited, 325.32 ,TRAFFIC BOLLARD - DUKE STREET CAR PARK,Miscellaneous Stock  - Purchases
23-Jun-21,Culture & Environment Services,Nacton Auto Electrics, 138.00 ,Repair to machine,Equipment / Furniture / Materials
11-Jun-21,Culture & Environment Services,P Tuckwell Ltd, 33.00 ,B75 Belt,Materials and Supplies - Miscellaneous
16-Jun-21,Culture & Environment Services,Post Office Counter, 13.27 ,Postage to return incorrect climbing ropes.,Equipment / Furniture / Materials
23-Jun-21,Culture & Environment Services,Post Office Counter, 3.57 ,Postal order /postage cost for DVLA to provide vehicle info,Legal Services & Fees
23-Jun-21,Culture & Environment Services,Reveal Media Ltd, 125.00 ,BODY CAM REPAIRS - PARK PATROL,Materials and Supplies - Miscellaneous
23-Jun-21,Culture & Environment Services,Reveal Media Ltd, 125.00 ,BODY CAM REPAIRS - PARK PATROL,Materials and Supplies - Miscellaneous
09-Jun-21,Culture & Environment Services,Ridgeons Atc Ipswich, 75.00 ,Drill battery - PLAY AREA INSPECTOR,Equipment / Furniture / Materials
02-Jun-21,Culture & Environment Services,Safety Gloves, 54.10 ,PPE - Safety gloves for use around the bars,Materials and Supplies - Miscellaneous
23-Jun-21,Culture & Environment Services,Sainsburys S/mkts, 5.00 ,Bubble Wrap and Tape to post body cams for repair,Equipment / Furniture / Materials
09-Jun-21,Culture & Environment Services,Screwfix Dir Ltd, 18.32 ,Brackets - PLAY AREA INSPECTOR,Equipment / Furniture / Materials
02-Jun-21,Culture & Environment Services,Screwfix Dir Ltd, 7.92 ,Various nuts/bolts,Materials and Supplies - Miscellaneous
04-Jun-21,Culture & Environment Services,Screwfix Dir Ltd, 14.16 ,Yard Broom - CHANTRY HUB,Materials and Supplies - Miscellaneous
17-Jun-21,Culture & Environment Services,Screwfix Dir Ltd, 9.97 ,RESIN - DUKE STREET CAR PARK,Miscellaneous Stock  - Purchases
24-Jun-21,Culture & Environment Services,Screwfix Dir Ltd, 83.32 ,Fibreglass Stepladder ,Miscellaneous Stock  - Purchases
23-Jun-21,Culture & Environment Services,Screwfix Dir Ltd, 29.16 ,Erbruaer fast charger for drill,Premises Costs - Miscellaneous
17-May-21,Culture & Environment Services,Screwfix Direct, 41.65 ,Barrier Fencing Orange 50 x 1m,Materials and Supplies - Miscellaneous
31-May-21,Culture & Environment Services,Screwfix Direct, 43.56 ,Items for the portable generator,Miscellaneous Stock  - Purchases
11-May-21,Culture & Environment Services,Sheldrake And Wells, 8.50 ,Vehicle Number Plate x 1,Materials and Supplies - Miscellaneous
19-May-21,Culture & Environment Services,Sheldrake And Wells, 8.50 ,Vehicle Number Plate x 1,Materials and Supplies - Miscellaneous
11-Jun-21,Culture & Environment Services,Sheldrake And Wells, 8.50 ,Vehicle Number Plate x 1,Materials and Supplies - Miscellaneous
25-Jun-21,Culture & Environment Services,Shell Ranelagh 390, 6.98 ,SCREENWASH,Parks Vehicle Costs
29-Jun-21,Culture & Environment Services,Signs For You Ltd, 355.38 ,Town Hall banners,Equipment / Furniture / Materials
29-Jun-21,Culture & Environment Services,Spm (Stores) Limited, 1.24 ,Screws,Equipment / Furniture / Materials
29-Jun-21,Culture & Environment Services,Sproughton Garden Machine, 47.84 ,replacement mower blade,Equipment / Furniture / Materials
07-Jun-21,Culture & Environment Services,Suffolk County Council, 18.33 ,public health death cert.,Equipment / Furniture / Materials
08-Jun-21,Culture & Environment Services,Suffolk County Council, 75.00 ,SKIP PERMIT ,Licence Fees - Highways
17-Jun-21,Culture & Environment Services,Suffolk County Council, 75.00 ,SKIP LICENCE WASTESAVER,Licence Fees - Highways
15-Jun-21,Culture & Environment Services,Tesco Stores 6126, 5.42 ,Duracell Batteries x 2,Materials and Supplies - Miscellaneous
14-Jun-21,Culture & Environment Services,The Windscreen Co, 96.00 ,CHIP REPAIR AY69 OJE,Direct Transport Costs
24-Jun-21,Culture & Environment Services,The Windscreen Co, 96.00 ,CHIP REPAIR FOR AV13 OPM & OUT OF HOURS CALL OUT FEE,Direct Transport Costs
24-Jun-21,Culture & Environment Services,The Windscreen Co, 48.00 ,CHIP REPAIR FOR AY69 OJE,Direct Transport Costs
13-May-21,Culture & Environment Services,The Windscreen Co, 125.00 ,Aggregate for Landseer,Materials and Supplies - Miscellaneous
29-Jun-21,Culture & Environment Services,Timpson Ltd, 23.33 ,Keys,Equipment - Repairs
29-Jun-21,Culture & Environment Services,Timpson Ltd, 17.71 ,Keys,Equipment / Furniture / Materials
23-Jun-21,Culture & Environment Services,Toolstation Limited, 15.89 ,DRILL BITS ,Miscellaneous Stock  - Purchases
24-Jun-21,Culture & Environment Services,Toolstation Limited, 11.15 ,DRILL BITS,Miscellaneous Stock  - Purchases
04-Jun-21,Culture & Environment Services,Toolstation Ltd, 9.10 ,Cutting Disc - LANDSCAPE TEAM,Miscellaneous Stock  - Purchases
14-Jun-21,Culture & Environment Services,Toolstation Uk, 49.95 ,:Lock boxes for Honorariums,Equipment / Furniture / Materials
15-Jun-21,Culture & Environment Services,Toolstation Uk, 60.21 ,Patch Tape for Gazebo repair,Equipment / Furniture / Materials
22-Jun-21,Culture & Environment Services,Total Football Ipswich Lt, 32.92 ,Whistles for the Park Patrol Team,Materials and Supplies - Miscellaneous
17-Jun-21,Culture & Environment Services,Travis Perkins, 609.00 ,Planks to replace rotten ones on benches,Materials and Supplies - Miscellaneous
07-Jun-21,Culture & Environment Services,Tsohost, 70.80 ,website hosting package,Miscellaneous Expenses
16-Jun-21,Culture & Environment Services,Tsohost, 6.95 ,website domain renewal,Miscellaneous Expenses
09-Jun-21,Culture & Environment Services,Wickes Ipswich, 51.03 ,Material to repair toilet door - CHANTRY HUB,Materials and Supplies - Miscellaneous
10-Jun-21,Culture & Environment Services,Www Lsengineers Co Uk, 52.90 ,chainsaw parts and accessories,Equipment / Furniture / Materials
02-Jun-21,Culture & Environment Services,Www.Banneruk.Com, 20.34 ,Stationery for Waste Services,Stationery
09-Jun-21,Culture & Environment Services,Www.Flags.Co.Uk, 210.56 ,Town Hall flags,Equipment / Furniture / Materials
06-May-21,Culture & Environment Services,Www.Officeteamconnect.Co, 188.02 ,Statiionery for Holywells Park office,Stationery
07-Jun-21,Culture & Environment Services,Www.Tudorenvironmental," 1,448.32 ",Various climbing equipment - ARB TEAM,Materials and Supplies - Miscellaneous
11-Jun-21,Culture & Environment Services,Www.Tudorenvironmental,"-1,448.32 ",REFUND FOR INCORRECT ITEMS,Materials and Supplies - Miscellaneous
18-May-21,Development,A C Leigh, 116.00 ,key cards,Premises Costs - Miscellaneous
03-Jun-21,Development,Aldi 776 104, 5.50 ,milk,Subsistence & Conference/Seminar / Event Expenses
15-Jun-21,Development,Amznmktplace, 10.82 ,Packaging tape (heavy duty) for site notices,Stationery
16-Jun-21,Development,Amznmktplace, 15.06 ,Packaging tape (heavy duty) for site notices,Stationery
17-Jun-21,Development,Bdc Internet, 228.33 ,A14 land,Capital Expenditure
14-Jun-21,Development,Gardening Delights, 83.20 ,compost bin bags,Cleaning Supplies
14-Jun-21,Development,Geodesys, 90.80 ,Search,Capital Expenditure
17-Jun-21,Development,Geodesys, 669.25 ,land A14 purchase,Capital Expenditure
03-Jun-21,Development,Royal Mail Charges, 1.25 ,SRP fee to pay,Postage Costs
03-Jun-21,Development,Royal Mail Charges, 1.67 ,SRP fee to pay,Postage Costs
03-Jun-21,Development,Royal Mail Charges, 2.92 ,SRP fee to pay,Postage Costs
04-Jun-21,Development,Royal Mail Charges, 1.67 ,srp fee to pay,Postage Costs
09-Jun-21,Development,Royal Mail Charges, 1.25 ,SRP - Fee To Pay,Postage Costs
10-Jun-21,Development,Royal Mail Charges, 1.25 ,SRP,Postage Costs
11-Jun-21,Development,Royal Mail Charges, 1.25 ,HOUSING,Postage Costs
11-Jun-21,Development,Royal Mail Charges, 1.25 ,SRP,Postage Costs
15-Jun-21,Development,Royal Mail Charges, 1.67 ,SRP,Postage Costs
23-Jun-21,Development,Screwfix Direct, 54.98 ,Portable LED floodlights,Equipment / Furniture / Materials
08-Jun-21,Development,"Www,eastsuffolk.Gov.Uk", 96.00 ,Partnership Inspections,Non Contracted_Professional Services
16-Jun-21,Development,"Www,eastsuffolk.Gov.Uk", 96.00 ,Partnership Inspections,Non Contracted_Professional Services
23-Jun-21,Development,Www.Latitudemaps.Co.Uk, 13.75 ,Latitude Map (A4 site plan) Planning and Development,Publications - Purchase
02-Jun-21,Development,Www.Planning.Co, 262.00 ,LBC fees,Capital Expenditure
08-Jun-21,Development,Www.Planning.Co, 218.33 ,Planning permission - Gecko planning,Capital Expenditure
18-Jun-21,Development,Www.Planning.Co, 218.33 ,Planning permission fee,Long Term Creditors (detail)
04-Jun-21,Development,Www.Safetec Direc.Co.U, 46.57 ,steel cap boots - PPE,Equipment / Furniture / Materials
09-Jun-21,Finance & Revenues,Amazon.Co.Uk, 15.58 ,Trodat replacement ink pads,Stationery
09-Jun-21,Finance & Revenues,Amznmktplace, 19.37 ,Trodat 4810 Self Inking Printy Dater Stamp x 3,Stationery
08-Jun-21,Finance & Revenues,Service Fees - Fraedom Pty Ltd, 383.15 ,Fraedom Card Fees 01/05/21 to 31/05/21,Computer Software - Maintenance
18-Jun-21,Finance & Revenues,Southend County, 421.50 ,Summons for CTAX and NDR,Legal Services & Fees
25-Jun-21,Finance & Revenues,Southend County, 547.50 ,CTAX and NDR Summons,Legal Services & Fees
03-Jun-21,Housing & Community Services,Amazon Prime, 7.99 ,Amazon Prime,Equipment / Furniture / Materials
23-Jun-21,Housing & Community Services,Amznmktplace, 17.06 ,Nicola Golding Projects Magnetic Angle Locator,Equipment / Furniture / Materials
27-May-21,Housing & Community Services,Amznmktplace, 17.49 ,100 door entry fobs for schemes,HRA Special Repairs & Maintenance
09-Jun-21,Housing & Community Services,Amznmktplace, 12.37 ,Door Handle,Materials and Supplies - Miscellaneous
09-Jun-21,Housing & Community Services,Amznmktplace, 16.66 ,roller blind office Cumberland Towers,Miscellaneous Expenses
28-Jun-21,Housing & Community Services,Amznmktplace, 287.27 ,Various items for tablets/mobile devices,Telecommunication Costs - Mobiles
23-Jun-21,Housing & Community Services,Amznmktplace Amazon.Co.Uk, 7.59 ,Mobile/tablet accessories,Telecommunication Costs - Mobiles
15-Jun-21,Housing & Community Services,Argos Ltd, 37.95 ,Curtain poles for self contained temporary accommodation,Premises Costs - Miscellaneous
09-Jun-21,Housing & Community Services,Argos Ltd, 73.00 ,Household items for 5x Navigator clients in new HMO,Specific Campaigns / Projects expenditure
15-Jun-21,Housing & Community Services,Argos Ltd, 159.99 ,Small fridge/freezer for navigator client,Specific Campaigns / Projects expenditure
15-Jun-21,Housing & Community Services,Argos Ltd, 172.94 ,TV for Navigator clients,Specific Campaigns / Projects expenditure
22-Jun-21,Housing & Community Services,Argos Ltd, 159.99 ,TV for navigator client in new accommodation,Specific Campaigns / Projects expenditure
27-May-21,Housing & Community Services,Cpw Locksmiths And Securi, 20.00 ,repair/replace/renew lock/keys to sheltered properties,HRA Special Repairs & Maintenance
28-May-21,Housing & Community Services,Cpw Locksmiths And Securi, 80.00 ,repair/replace/renew lock/keys to sheltered properties,HRA Special Repairs & Maintenance
07-Jun-21,Housing & Community Services,Cpw Locksmiths And Securi, 11.67 ,repair/replace/renew lock/keys to sheltered properties,HRA Special Repairs & Maintenance
14-Jun-21,Housing & Community Services,Cpw Locksmiths And Securi, 80.00 ,repair/replace/renew lock/keys to sheltered properties,HRA Special Repairs & Maintenance
17-Jun-21,Housing & Community Services,Cpw Locksmiths And Securi, 5.00 ,repair/replace/renew lock/keys to sheltered properties,HRA Special Repairs & Maintenance
09-Jun-21,Housing & Community Services,Gen Register Office, 14.00 ,Birth cert for Navigator client,Specific Campaigns / Projects expenditure
09-Jun-21,Housing & Community Services,Gen Register Office, 14.00 ,Birth Cert for Navigator client,Specific Campaigns / Projects expenditure
09-Jun-21,Housing & Community Services,Gen Register Office, 14.00 ,Birth cert for Navigator client,Specific Campaigns / Projects expenditure
24-Jun-21,Housing & Community Services,Powertool World, 58.25 ,"Hireshop Water suppression bottles MC284,MC285",Equipment / Furniture / Materials
15-Jun-21,Housing & Community Services,Sainsburys S/mkt, 12.50 ,3x toilet brushes & Holders,Materials and Supplies - Miscellaneous
15-Jun-21,Housing & Community Services,Screwfix Direct, 91.65 ,2x Napsack sprayers,Equipment / Furniture / Materials
24-Jun-21,Housing & Community Services,Screwfix Direct, 29.16 ,Access panel,Materials and Supplies - Miscellaneous
16-Jun-21,Housing & Community Services,Showerdoc, 170.00 ,REDACTED,Materials and Supplies - Miscellaneous
17-Jun-21,Housing & Community Services,Sp * Only5pounds, 7.46 ,Stationary supplies - Whitton Sports centre,Stationery
31-May-21,Housing & Community Services,Value Products Ltd, 19.25 ,Signage for sports centres,Materials and Supplies - Miscellaneous
25-Jun-21,Housing & Community Services,Value Products Ltd, 278.25 ,HSE Posters for voids,Publications - Purchase
28-May-21,Housing & Community Services,Viking Uk, 32.47 ,Stationary products,Stationery
21-Jun-21,Housing & Community Services,Viking Uk,-32.47 ,Stationary supplies refund as products not received,Stationery
22-Jun-21,Housing & Community Services,Www.Banneruk.Com, 24.42 ,Stationery,Stationery
22-Jun-21,Housing & Community Services,Www.Banneruk.Com, 179.20 ,Stationery,Stationery
25-Jun-21,Housing & Community Services,Www.Storagenstuff.Co.U, 135.99 ,Voids Sackbarrow,Equipment / Furniture / Materials
29-Jun-21,Housing & Community Services,Www.Voucherexpress.Co., 155.50 ,Decorating grant for homeless household,Services for Clients
04-Jun-21,People & Governance,Amazon.Co.Uk, 23.99 ,Keyboard and Mse Wireless,Equipment / Furniture / Materials
22-Jun-21,People & Governance,Amzn Digital, 107.49 ,Office 2019,Computer Software - Purchase
02-Jun-21,People & Governance,Amznmktplace, 14.14 ,clear protective visors,Equipment / Furniture / Materials
07-Jun-21,People & Governance,Amznmktplace, 33.12 ,Monitor Stand DSE,Equipment / Furniture / Materials
03-Jun-21,People & Governance,Amznmktplace Amazon.Co.Uk, 45.54 ,USB Hubs x 6,Equipment / Furniture / Materials
23-Jun-21,People & Governance,Cipd Integra, 163.00 ,CIPD Subscription fees,Non Contracted_Professional Services
03-Jun-21,People & Governance,Companies House, 13.00 ,dormant company statement,Legal Services & Fees
30-Jun-21,People & Governance,Digicert Inc., 207.00 ,SSL Certificate,Web Service costs
16-Jun-21,People & Governance,Siteground Hosting, 171.00 ,Cloud hosting renewal,Equipment / Furniture / Materials
15-Jun-21,People & Governance,Tracker Sof, 44.30 ,PDF Software,Training/Courses Running Costs
28-Jun-21,People & Governance,Www.4gon.Co.Uk," 1,071.84 ",Network switches,Capital Expenditure
18-Jun-21,People & Governance,Www.4gon.Co.Uk, 525.25 ,Wi-Fi Access points,Computer Equipment - Purchase
04-Jun-21,People & Governance,Www.Ryman.Co.Uk, 47.45 ,Councillor Ink Cartridges,Computer Consumables and other Minor IT costs
15-Jun-21,People & Governance,Zoom.Gbp, 23.98 ,Zoom Monthly Subscription,Computer Consumables and other Minor IT costs
28-Jun-21,Sports & Programmes,Adobe Ps Creative Cld,-40.01 ,Credit for Adobe CC Software license,Computer Software - Maintenance
02-Jun-21,Sports & Programmes,Adobe Stock, 19.99 ,Adobe Stock Images,Computer Consumables and other Minor IT costs
10-Jun-21,Sports & Programmes,Amazon.Co.Uk, 47.77 ,Printer consumables,Computer Consumables and other Minor IT costs
10-Jun-21,Sports & Programmes,Amazon.Co.Uk, 69.67 ,Printer consumables,Computer Consumables and other Minor IT costs
07-Jun-21,Sports & Programmes,Amznmktplace, 6.57 ,Cable ties,Equipment / Furniture / Materials
21-Jun-21,Sports & Programmes,Amznmktplace, 62.24 ,Envelopes for the Print Room use,Miscellaneous Stock  - Purchases
08-Jun-21,Sports & Programmes,Amznmktplace, 7.82 ,A4 Laminating pouches,Stationery
21-Jun-21,Sports & Programmes,Amznmktplace Amazon.Co.Uk, 7.49 ,Diary,Equipment / Furniture / Materials
21-Jun-21,Sports & Programmes,Amznmktplace Amazon.Co.Uk, 88.96 ,Envelopes for Print Room use,Miscellaneous Stock  - Purchases
07-Jun-21,Sports & Programmes,Argos Ltd, 10.00 ,Football Pump,Equipment / Furniture / Materials
04-Jun-21,Sports & Programmes,Arts Marketing Ass, 420.00 ,AMA annual membership,Subscriptions - Service Related
07-Jun-21,Sports & Programmes,Arts Marketing Ass, 55.00 ,AMA webinar video content production ,Training Expenses
22-Jun-21,Sports & Programmes,B&m 591 - Carr Road, 5.00 ,Paper for printer,Equipment / Furniture / Materials
17-Jun-21,Sports & Programmes,B&q Direct, 22.31 ,kettle descaler minor equipment,Equipment / Furniture / Materials
11-Jun-21,Sports & Programmes,Cpw Locksmiths And Securi, 11.67 ,Gate key Ransomes,Equipment / Furniture / Materials
18-Jun-21,Sports & Programmes,Dale Sauna Ltd, 464.40 ,Pool chemicals,Cleaning Supplies
16-Jun-21,Sports & Programmes,Defib Pad, 249.00 ,Defib Battery for Crown Pools,Equipment / Furniture / Materials
12-May-21,Sports & Programmes,Findel Education, 39.96 ,Discusses for junior athletics,Equipment / Furniture / Materials
15-Jun-21,Sports & Programmes,Hsd Online, 29.95 ,Toilet roll holder - Crush hall,Equipment / Furniture / Materials
12-May-21,Sports & Programmes,Mailchimp, 529.91 ,MailChimp email marketing,Subscriptions - Service Related
14-Jun-21,Sports & Programmes,Mailchimp, 554.07 ,MailChimp email marketing,Subscriptions - Service Related
10-Jun-21,Sports & Programmes,Paperstone, 50.82 ,Hand towel dispenser,Equipment / Furniture / Materials
11-Jun-21,Sports & Programmes,Poundland Ltd 1719, 7.50 ,antibac wipes,Cleaning Supplies
28-Jun-21,Sports & Programmes,Premier Farnell, 42.00 ,Hand towel dispenser - regent,Equipment / Furniture / Materials
03-Jun-21,Sports & Programmes,Quadient UK Ltd, 103.60 ,Sealing Fluid for the folder inserter machines,Miscellaneous Stock  - Purchases
17-Jun-21,Sports & Programmes,Ryman, 16.66 ,A3 laminating pouches,Stationery
22-Jun-21,Sports & Programmes,Sainsburys S/mkts, 2.92 ,J Cloths,Cleaning Supplies
02-Jun-21,Sports & Programmes,Screwfix Direct, 115.78 ,drill,Equipment / Furniture / Materials
14-Jun-21,Sports & Programmes,Screwfix Direct, 84.69 ,painting supplies,Equipment / Furniture / Materials
24-Jun-21,Sports & Programmes,Screwfix Direct, 63.74 ,Hot water urn,Equipment / Furniture / Materials
17-May-21,Sports & Programmes,Shopify* 109192880, 21.27 ,Made in Suffolk online shop,Advertising/Publicity
15-Jun-21,Sports & Programmes,Shopify* 111785091, 21.22 ,Made in Suffolk online shop,Advertising/Publicity
08-Jun-21,Sports & Programmes,Sp * Rlss UK Shop, 549.10 ,training aids,Training Expenses
25-May-21,Sports & Programmes,Sportsdirect 366, 13.32 ,Wellington boots and socks,Equipment / Furniture / Materials
17-Jun-21,Sports & Programmes,"Sprout Social, Inc", 699.59 ,Social media management tool,Advertising/Publicity
18-Jun-21,Sports & Programmes,Timpson Ltd, 45.21 ,Keys,Equipment / Furniture / Materials
22-Jun-21,Sports & Programmes,Timpson Ltd, 23.75 ,Keys,Equipment / Furniture / Materials
31-May-21,Sports & Programmes,Train With Caws, 84.00 ,CAWS Long Covid Training Course,Specific Campaigns / Projects expenditure
24-Jun-21,Sports & Programmes,Travelodge Gb0674, 856.36 ,Hotel costs ,Services for Clients
08-Jun-21,Sports & Programmes,Value Products Ltd, 140.70 ,training aids,Training Expenses
10-Jun-21,Sports & Programmes,Wessex Cleaning Equipment, 41.65 ,Hand towel dispenser,Cleaning Supplies
26-May-21,Sports & Programmes,Workwear Express, 38.73 ,Uniform trousers,Clothing / Uniform & Laundry
22-Jun-21,Sports & Programmes,Workwear Express, 22.34 ,Uniform Trousers,Clothing / Uniform & Laundry
18-Jun-21,Sports & Programmes,Www.Aalabels.Com, 21.23 ,Stickers  - cemeteries,Miscellaneous Stock  - Purchases
18-Jun-21,Sports & Programmes,Www.Banneruk.Com, 338.96 ,Envelopes for the print room use,Miscellaneous Stock  - Purchases
17-Jun-21,Sports & Programmes,Www.Bunzlcleaningsuppl, 16.29 ,limescale toilet cleaner - Ransomes,Cleaning Supplies
17-Jun-21,Sports & Programmes,Www.Lockshopdirect.Co., 64.20 ,Padlocks,Equipment / Furniture / Materials
02-Jun-21,Sports & Programmes,Www.Ofcom.Org.Uk, 62.50 ,Portable Airwave Radio Licence for Crown pools,Licences & Other Fees
18-Jun-21,Sports & Programmes,Www.Paper.Co.Uk, 138.41 ,Paper for the Print Room use,Miscellaneous Stock  - Purchases
